fUSD/lending_fUSD_20240205
["ID","MTS","AMOUNT","RATE_DAILY","PERIOD"]
[313293100,1707095475703,-1000.0,0.000452,2]
[313293101,1707095475712,-4000.0,0.000452,2]
[313293102,1707095475721,-16195.94,0.000453,7]
[313293103,1707095475730,-12000.0,0.000453,120]
[313293104,1707095475740,-150.0,0.000453,16]
[313293105,1707095475749,-160.02,0.000454,7]
[313293106,1707095475759,-11886.71,0.000454,120]
[313293107,1707095475768,-8499.98062625,0.0004542,7]
[313293108,1707095475778,-154.50057284,0.0004542,120]
[313293109,1707095475787,-154.50057284,0.0004542,120]
[313293110,1707095475796,-154.50057284,0.0004542,120]
[313293111,1707095475805,-154.50057284,0.0004542,120]
[313293112,1707095475814,-154.50057284,0.0004542,120]
[313293113,1707095475823,-154.50057284,0.0004542,120]
[313293114,1707095475832,-154.50057284,0.0004542,120]
[313293115,1707095475841,-154.50057284,0.0004542,120]
[313293116,1707095475850,-154.50057284,0.0004542,120]
[313293117,1707095475859,-154.50057284,0.0004542,120]
[313293118,1707095475868,-154.50057284,0.0004542,120]
[313293119,1707095475877,-154.50057284,0.0004542,120]
[313293120,1707095475886,-154.50057284,0.0004542,120]
[313293121,1707095475895,-154.50057284,0.0004542,120]
[313293122,1707095475904,-154.50057284,0.0004542,120]
[313293123,1707095475913,-150.0,0.00045422,2]
[313293124,1707095475922,-171.0205,0.00045498,43]
[313293125,1707095475932,-4727.0,0.0004569,2]
[313293126,1707095475941,-3094.0,0.0004569,2]
[313293127,1707095475953,-166.0,0.000457,30]
[313293128,1707095475962,-500.0,0.00045753,2]
[313293129,1707095475971,-1031.1,0.00045753,7]
[313293130,1707095475980,-500.0,0.00045753,2]
[313293131,1707095475989,-500.0,0.00045753,2]
[313293132,1707095475998,-553.67,0.00045753,2]
[313293133,1707095476007,-500.0,0.00045753,2]
[313293134,1707095476016,-1044.03,0.00045753,2]
[313293135,1707095476025,-500.0,0.00045753,2]
[313293136,1707095476034,-500.0,0.00045753,2]
[313293137,1707095476043,-803.85,0.00045753,30]
[313293138,1707095476052,-608.81,0.00045753,2]
[313293139,1707095476062,-911.94,0.00045753,7]
[313293140,1707095476076,-500.0,0.00045753,2]
[313293141,1707095476085,-1072.12,0.00045753,2]
[313293142,1707095476095,-500.0,0.00045753,2]
[313293143,1707095476104,-947.41,0.00045753,20]
[313293144,1707095476114,-500.0,0.00045753,2]
[313293145,1707095476123,-645.15,0.00045753,2]
[313293146,1707095476132,-1039.15,0.00045753,2]
[313293147,1707095476141,-1000.0,0.00045753,30]
[313293148,1707095476150,-500.0,0.00045753,2]
[313293149,1707095476159,-1171.17,0.00045753,2]
[313293150,1707095476169,-883.87,0.00045753,2]
[313293151,1707095476178,-828.79,0.00045753,2]
[313293152,1707095476187,-623.3,0.00045753,2]
[313293153,1707095476197,-500.0,0.00045753,2]
[313293154,1707095476207,-3906.28,0.00045753,2]
[313293155,1707095476217,-500.0,0.00045753,2]
[313293156,1707095476226,-500.0,0.00045753,2]
[313293157,1707095476235,-500.0,0.00045753,2]
[313293158,1707095476244,-3442.61,0.00045753,2]
[313293159,1707095476254,-500.0,0.00045753,2]
[313293160,1707095476263,-610.14420245,0.00045753,2]
[313293161,1707095476272,-500.0,0.00045753,2]
[313293162,1707095476283,-643.24280608,0.00045753,2]
[313293163,1707095476293,-500.0,0.00045753,2]
[313293164,1707095476302,-1766.17,0.00045753,5]
[313293165,1707095476311,-500.0,0.00045753,2]
[313293166,1707095476320,-717.49,0.00045753,2]
[313293167,1707095476329,-2896.55,0.00045753,2]
[313293168,1707095476339,-1943.62,0.00045753,2]
[313293169,1707095476348,-882.82,0.00045753,2]
[313293170,1707095476358,-500.0,0.00045753,2]
[313293171,1707095476367,-500.0,0.00045753,2]
[313293172,1707095476378,-500.0,0.00045753,2]
[313293173,1707095476388,-500.0,0.00045753,2]
[313293174,1707095476397,-500.0,0.00045753,2]
[313293175,1707095476406,-500.0,0.00045753,2]
[313293176,1707095476416,-633.54,0.00045753,2]
[313293177,1707095476426,-2280.46,0.00045753,2]
[313293178,1707095476435,-666.48,0.00045753,2]
[313293179,1707095476446,-1000.0,0.00045753,7]
[313293180,1707095476458,-787.28,0.00045753,2]
[313293181,1707095476468,-1000.0,0.00045753,7]
[313293182,1707095476479,-500.0,0.00045753,2]
[313293183,1707095476489,-168.57988023,0.00045753,2]
[313293184,1707095476498,-234.52841019,0.00045753,2]
[313293185,1707095476508,-500.0,0.00045753,2]
[313293186,1707095476589,-500.0,0.00045753,2]
[313293187,1707095476599,-500.0,0.00045753,2]
[313293188,1707095476608,-500.0,0.00045753,2]
[313293189,1707095476617,-500.0,0.00045753,2]
[313293190,1707095476627,-500.0,0.00045753,2]
[313293191,1707095476637,-500.0,0.00045753,2]
[313293192,1707095476647,-1162.55,0.00045753,2]
[313293193,1707095476657,-2177.23,0.00045753,5]
[313293194,1707095476666,-500.0,0.00045753,2]
[313293195,1707095476676,-598.05,0.00045753,2]
[313293196,1707095476686,-500.0,0.00045753,2]
[313293197,1707095476695,-500.97,0.00045753,2]
[313293198,1707095476708,-500.0,0.00045753,2]
[313293199,1707095476718,-500.0,0.00045753,2]
[313293200,1707095476727,-500.0,0.00045753,2]
[313293201,1707095476737,-500.0,0.00045753,2]
[313293202,1707095476746,-500.0,0.00045753,2]
[313293203,1707095476755,-500.0,0.00045753,2]
[313293204,1707095476765,-776.5,0.00045753,2]
[313293205,1707095476774,-500.0,0.00045753,2]
[313293206,1707095476784,-600.30379511,0.00045753,2]
[313293207,1707095476793,-1918.0,0.0004579,2]
[313293208,1707095476802,-171.0205,0.00045798,43]
[313293209,1707095476811,-300.0,0.000458,22]
[313293210,1707095476820,-150.0,0.000458,17]
[313293211,1707095476829,-1034.59075451,0.0004588,100]
[313293212,1707095476838,-666.0,0.0004589,2]
[313293213,1707095476847,-16195.94,0.000459,7]
[313293214,1707095476856,-5000.0,0.0004598,7]
[313293215,1707095476866,-200.0,0.00045987,7]
[313293216,1707095476917,-200.0,0.00045987,5]
[313293217,1707095476926,-200.0,0.00045987,3]
[313293218,1707095476935,-100000.0,0.00046,36]
[313293219,1707095476944,-500.0,0.00046,2]
[313293220,1707095476956,-191.0234348,0.00046,19]
[313293221,1707095476965,-5686663.81517465,0.00046,15]
[313293222,1707095476974,-500.0,0.00046,5]
[313293223,1707095476984,-1330842.83855328,0.00046,5]
[313293224,1707095476994,-1003.24,0.00046,2]
[313293225,1707095477003,-11482.72,0.00046,4]
[313293226,1707095477012,-507.18,0.00046,120]
[313293227,1707095477021,-300.0,0.00046,46]
[313293228,1707095477030,-381.07104449,0.00046,120]
[313293229,1707095477040,-1000.0,0.00046,30]
[313293230,1707095477050,-1000.0,0.00046,17]
[313293231,1707095477059,-2483.70788711,0.00046,2]
[313293232,1707095477070,-300.0,0.000461,22]
[313293233,1707095477080,-33519.0,0.00046101,30]
[313293234,1707095477089,-2000.0,0.00046134,31]
[313293235,1707095477098,-151.0,0.00046184,2]
[313293236,1707095477111,-250.49088,0.00046184,2]
[313293237,1707095477120,-150.0,0.000463,17]
[313293238,1707095477130,-150.0,0.00046431,2]
[313293239,1707095477139,-10000.0,0.00046452,4]
[313293240,1707095477150,-4503.0,0.0004649,2]
[313293241,1707095477160,-3192.0,0.0004649,2]
[313293242,1707095477169,-171.0205,0.00046498,47]
[313293243,1707095477179,-5000.0,0.000465,35]
[313293244,1707095477189,-166.0,0.000465,30]
[313293245,1707095477210,-500.0,0.00046575,60]
[313293246,1707095477225,-500.0,0.00046575,2]
[313293247,1707095477243,-1031.1,0.00046575,7]
[313293248,1707095477262,-500.0,0.00046575,2]
[313293249,1707095477277,-500.0,0.00046575,2]
[313293250,1707095477294,-553.67,0.00046575,2]
[313293251,1707095477310,-500.0,0.00046575,2]
[313293252,1707095477328,-1044.03,0.00046575,2]
[313293253,1707095477345,-168.14705227,0.00046575,2]
[313293254,1707095477362,-500.0,0.00046575,2]
[313293255,1707095477382,-803.85,0.00046575,30]
[313293256,1707095477398,-608.81,0.00046575,2]
[313293257,1707095477411,-1699.92,0.00046575,31]
[313293258,1707095477428,-1699.92,0.00046575,31]
[313293259,1707095477443,-1699.92,0.00046575,31]
[313293260,1707095477458,-1699.92,0.00046575,31]
[313293261,1707095477473,-1699.92,0.00046575,31]
[313293262,1707095477488,-1699.92,0.00046575,31]
[313293263,1707095477502,-1699.92,0.00046575,31]
[313293264,1707095477516,-1699.92,0.00046575,31]
[313293265,1707095477530,-1699.92,0.00046575,31]
[313293266,1707095477545,-1699.92,0.00046575,31]
[313293267,1707095477559,-1699.92,0.00046575,31]
[313293268,1707095477574,-911.94,0.00046575,7]
[313293269,1707095477588,-500.0,0.00046575,2]
[313293270,1707095477602,-1072.12,0.00046575,2]
[313293271,1707095477616,-500.0,0.00046575,2]
[313293272,1707095477630,-5000.0,0.00046575,40]
[313293273,1707095477645,-2546.85,0.00046575,31]
[313293274,1707095477659,-2546.85,0.00046575,31]
[313293275,1707095477673,-2546.85,0.00046575,31]
[313293276,1707095477688,-2546.85,0.00046575,31]
[313293277,1707095477705,-2546.85,0.00046575,31]
[313293278,1707095477720,-2546.85,0.00046575,31]
[313293279,1707095477734,-2546.85,0.00046575,31]
[313293280,1707095477748,-2546.85,0.00046575,31]
[313293281,1707095477763,-2546.85,0.00046575,31]
[313293282,1707095477777,-2546.85,0.00046575,31]
[313293283,1707095477792,-2546.85,0.00046575,31]
[313293284,1707095477806,-947.41,0.00046575,20]
[313293285,1707095477820,-500.0,0.00046575,2]
[313293286,1707095477835,-578.28685202,0.00046575,2]
[313293287,1707095477849,-645.15,0.00046575,2]
[313293288,1707095477863,-1039.15,0.00046575,2]
[313293289,1707095477877,-1000.0,0.00046575,40]
[313293290,1707095477892,-1000.0,0.00046575,30]
[313293291,1707095477907,-500.0,0.00046575,2]
[313293292,1707095477921,-1171.17,0.00046575,2]
[313293293,1707095477936,-187.5,0.00046575,120]
[313293294,1707095477951,-883.87,0.00046575,2]
[313293295,1707095477965,-828.79,0.00046575,2]
[313293296,1707095477979,-623.3,0.00046575,2]
[313293297,1707095477995,-500.0,0.00046575,2]
[313293298,1707095478009,-500.0,0.00046575,2]
[313293299,1707095478023,-3906.28,0.00046575,2]
[313293300,1707095478038,-500.0,0.00046575,2]
[313293301,1707095478051,-500.0,0.00046575,2]
[313293302,1707095478168,-3442.61,0.00046575,2]
[313293303,1707095478177,-500.0,0.00046575,2]
[313293304,1707095478187,-500.0,0.00046575,2]
[313293305,1707095478196,-500.0,0.00046575,2]
[313293306,1707095478206,-1766.17,0.00046575,5]
[313293307,1707095478216,-500.0,0.00046575,2]
[313293308,1707095478225,-717.49,0.00046575,2]
[313293309,1707095478234,-2896.55,0.00046575,2]
[313293310,1707095478243,-1943.62,0.00046575,2]
[313293311,1707095478252,-882.82,0.00046575,2]
[313293312,1707095478263,-500.0,0.00046575,2]
[313293313,1707095478273,-500.0,0.00046575,2]
[313293314,1707095478282,-500.0,0.00046575,2]
[313293315,1707095478291,-449.56067148,0.00046575,2]
[313293316,1707095478301,-500.0,0.00046575,2]
[313293317,1707095478310,-500.0,0.00046575,2]
[313293318,1707095478319,-500.0,0.00046575,2]
[313293319,1707095478329,-500.0,0.00046575,2]
[313293320,1707095478338,-500.0,0.00046575,2]
[313293321,1707095478348,-500.0,0.00046575,2]
[313293322,1707095478357,-561.44084,0.00046575,2]
[313293323,1707095478368,-633.54,0.00046575,2]
[313293324,1707095478377,-2280.46,0.00046575,2]
[313293325,1707095478387,-666.48,0.00046575,2]
[313293326,1707095478396,-1000.0,0.00046575,7]
[313293327,1707095478406,-787.28,0.00046575,2]
[313293328,1707095478415,-1000.0,0.00046575,7]
[313293329,1707095478424,-500.0,0.00046575,2]
[313293330,1707095478433,-500.0,0.00046575,2]
[313293331,1707095478443,-166.21790995,0.00046575,2]
[313293332,1707095478454,-500.0,0.00046575,2]
[313293333,1707095478463,-500.0,0.00046575,2]
[313293334,1707095478473,-500.0,0.00046575,2]
[313293335,1707095478482,-311.9602117,0.00046575,2]
[313293336,1707095478492,-500.0,0.00046575,2]
[313293337,1707095478502,-1162.55,0.00046575,2]
[313293338,1707095478511,-2177.23,0.00046575,5]
[313293339,1707095478521,-500.0,0.00046575,2]
[313293340,1707095478531,-598.05,0.00046575,2]
[313293341,1707095478541,-500.0,0.00046575,2]
[313293342,1707095478551,-500.97,0.00046575,2]
[313293343,1707095478560,-640.5889877,0.00046575,2]
[313293344,1707095478570,-359.08087019,0.00046575,2]
[313293345,1707095478580,-500.0,0.00046575,2]
[313293346,1707095478589,-500.0,0.00046575,2]
[313293347,1707095478599,-630.88001441,0.00046575,2]
[313293348,1707095478608,-226.17249956,0.00046575,2]
[313293349,1707095478617,-776.5,0.00046575,2]
[313293350,1707095478627,-500.0,0.00046575,2]
[313293351,1707095478636,-500.0,0.00046575,7]
[313293352,1707095478646,-2400.0,0.00046575,15]
[313293353,1707095478655,-33519.0,0.00046577,30]
[313293354,1707095478665,-4469.0,0.0004659,2]
[313293355,1707095478674,-2950.0,0.0004659,2]
[313293356,1707095478683,-2000.0,0.000466,2]
[313293357,1707095478694,-2000.0,0.000466,2]
[313293358,1707095478705,-2900.06794976,0.000466,2]
[313293359,1707095478714,-1000.0,0.000466,2]
[313293360,1707095478723,-150.101,0.0004662,2]
[313293361,1707095478732,-150.101,0.0004662,2]
[313293362,1707095478741,-160.42387282,0.0004662,2]
[313293363,1707095478750,-43265.30141489,0.00046634,2]
[313293364,1707095478759,-1918.0,0.000467,2]
[313293365,1707095478767,-289.26100823,0.000468,60]
[313293366,1707095478776,-1900.92060953,0.000468,30]
[313293367,1707095478785,-372.095232,0.000468,23]
[313293368,1707095478795,-150.0,0.000468,18]
[313293369,1707095478804,-500.0,0.00046849,61]
[313293370,1707095478814,-5000.0,0.00046849,45]
[313293371,1707095478823,-1000.0,0.00046849,45]
[313293372,1707095478832,-403.47,0.00046849,2]
[313293373,1707095478841,-1890.22,0.00046849,2]
[313293374,1707095478850,-268.0,0.00046849,120]
[313293375,1707095478860,-618.0,0.00046849,120]
[313293376,1707095478869,-150.0,0.0004685,30]
[313293377,1707095478878,-150.0,0.0004685,30]
[313293378,1707095478887,-150.0,0.0004685,30]
[313293379,1707095478896,-150.0,0.0004685,30]
[313293380,1707095478904,-150.0,0.0004685,30]
[313293381,1707095478913,-150.0,0.0004685,30]
[313293382,1707095478922,-150.0,0.0004685,30]
[313293383,1707095478931,-150.0,0.0004685,30]
[313293384,1707095478940,-160.02,0.000469,7]
[313293385,1707095478950,-302.0,0.0004696,4]
[313293386,1707095478959,-200.0,0.00046987,19]
[313293387,1707095478968,-200.0,0.00046987,16]
[313293388,1707095478976,-200.0,0.00046987,13]
[313293389,1707095478985,-100000.0,0.00047,37]
[313293390,1707095478994,-1435.08627348,0.00047,4]
[313293391,1707095479003,-500.0,0.00047,30]
[313293392,1707095479012,-3239.0,0.00047,30]
[313293393,1707095479021,-300.0,0.00047,47]
[313293394,1707095479030,-329.0,0.00047,2]
[313293395,1707095479039,-15367.38,0.00047,7]
[313293396,1707095479048,-12164.96,0.00047,7]
[313293397,1707095479057,-4500.0,0.00047,3]
[313293398,1707095479066,-300.0,0.00047,30]
[313293399,1707095479075,-1310.8,0.00047,30]
[313293400,1707095479085,-3000.0,0.00047,47]
[313293401,1707095479094,-15000.0,0.00047,120]
[313293402,1707095479106,-15000.0,0.00047,120]
[313293403,1707095479115,-15000.0,0.00047,120]
[313293404,1707095479124,-1155.49,0.00047,120]
[313293405,1707095479133,-1800.0,0.00047,3]
[313293406,1707095479142,-33519.0,0.00047052,30]
[313293407,1707095479151,-300.0,0.000471,24]
[313293408,1707095479160,-524.91053792,0.00047123,62]
[313293409,1707095479169,-5000.0,0.00047123,50]
[313293410,1707095479178,-1000.0,0.00047123,50]
[313293411,1707095479188,-15000.0,0.00047163,120]
[313293412,1707095479197,-15000.0,0.00047163,120]
[313293413,1707095479208,-1000.0,0.000472,20]
[313293414,1707095479217,-375.47,0.00047226,2]
[313293415,1707095479226,-150.0,0.000473,18]
[313293416,1707095479235,-2000.0,0.00047316,120]
[313293417,1707095479245,-2000.0,0.00047316,120]
[313293418,1707095479254,-15000.0,0.00047325,120]
[313293419,1707095479262,-500.0,0.00047358,7]
[313293420,1707095479271,-500.0,0.00047397,7]
[313293421,1707095479280,-1031.1,0.00047397,7]
[313293422,1707095479289,-596.53988977,0.00047397,31]
[313293423,1707095479298,-500.0,0.00047397,31]
[313293424,1707095479307,-553.67,0.00047397,31]
[313293425,1707095479316,-606.27077658,0.00047397,30]
[313293426,1707095479399,-1044.03,0.00047397,31]
[313293427,1707095479408,-500.0,0.00047397,2]
[313293428,1707095479418,-803.85,0.00047397,30]
[313293429,1707095479427,-608.81,0.00047397,31]
[313293430,1707095479436,-1699.92,0.00047397,31]
[313293431,1707095479445,-911.94,0.00047397,7]
[313293432,1707095479456,-500.0,0.00047397,31]
[313293433,1707095479466,-1072.12,0.00047397,31]
[313293434,1707095479475,-500.0,0.00047397,31]
[313293435,1707095479484,-5000.0,0.00047397,55]
[313293436,1707095479494,-2546.85,0.00047397,31]
[313293437,1707095479503,-947.41,0.00047397,20]
[313293438,1707095479513,-500.0,0.00047397,31]
[313293439,1707095479522,-645.15,0.00047397,10]
[313293440,1707095479531,-1039.15,0.00047397,31]
[313293441,1707095479540,-1000.0,0.00047397,55]
[313293442,1707095479549,-1000.0,0.00047397,30]
[313293443,1707095479558,-500.0,0.00047397,31]
[313293444,1707095479567,-1171.17,0.00047397,31]
[313293445,1707095479577,-883.87,0.00047397,31]
[313293446,1707095479586,-828.79,0.00047397,7]
[313293447,1707095479595,-623.3,0.00047397,31]
[313293448,1707095479605,-500.0,0.00047397,31]
[313293449,1707095479614,-500.0,0.00047397,31]
[313293450,1707095479622,-3906.28,0.00047397,31]
[313293451,1707095479631,-500.0,0.00047397,31]
[313293452,1707095479640,-500.0,0.00047397,31]
[313293453,1707095479649,-3442.61,0.00047397,31]
[313293454,1707095479658,-527.7769585,0.00047397,31]
[313293455,1707095479667,-500.0,0.00047397,31]
[313293456,1707095479676,-500.0,0.00047397,31]
[313293457,1707095479685,-1766.17,0.00047397,5]
[313293458,1707095479693,-500.0,0.00047397,31]
[313293459,1707095479704,-717.49,0.00047397,31]
[313293460,1707095479713,-2896.55,0.00047397,31]
[313293461,1707095479722,-1943.62,0.00047397,31]
[313293462,1707095479731,-882.82,0.00047397,31]
[313293463,1707095479740,-500.0,0.00047397,31]
[313293464,1707095479750,-500.0,0.00047397,31]
[313293465,1707095479759,-500.0,0.00047397,31]
[313293466,1707095479769,-520.06720219,0.00047397,31]
[313293467,1707095479778,-500.0,0.00047397,31]
[313293468,1707095479788,-633.54,0.00047397,31]
[313293469,1707095479798,-2280.46,0.00047397,31]
[313293470,1707095479808,-666.48,0.00047397,31]
[313293471,1707095479817,-1000.0,0.00047397,7]
[313293472,1707095479826,-787.28,0.00047397,31]
[313293473,1707095479835,-1000.0,0.00047397,7]
[313293474,1707095479844,-500.0,0.00047397,31]
[313293475,1707095479853,-500.0,0.00047397,31]
[313293476,1707095479862,-500.0,0.00047397,31]
[313293477,1707095479870,-500.0,0.00047397,31]
[313293478,1707095479880,-278.31367965,0.00047397,31]
[313293479,1707095479889,-500.0,0.00047397,31]
[313293480,1707095479898,-1162.55,0.00047397,31]
[313293481,1707095479907,-2177.23,0.00047397,5]
[313293482,1707095479917,-500.0,0.00047397,31]
[313293483,1707095479926,-598.05,0.00047397,31]
[313293484,1707095479935,-500.0,0.00047397,31]
[313293485,1707095479945,-500.97,0.00047397,31]
[313293486,1707095479956,-500.0,0.00047397,31]
[313293487,1707095479965,-500.0,0.00047397,31]
[313293488,1707095479974,-776.5,0.00047397,31]
[313293489,1707095479983,-500.0,0.00047397,31]
[313293490,1707095479992,-166.0,0.000474,30]
[313293491,1707095480001,-150.0,0.0004744,2]
[313293492,1707095480010,-10040.0,0.00047463,7]
[313293493,1707095480019,-2000.0,0.00047484,60]
[313293494,1707095480028,-15000.0,0.00047488,120]
[313293495,1707095480037,-255.0,0.0004749,2]
[313293496,1707095480046,-171.0205,0.00047498,51]
[313293497,1707095480055,-5000.0,0.000475,2]
[313293498,1707095480067,-324.0,0.000475,2]
[313293499,1707095480077,-205.0,0.00047518,38]
[313293500,1707095480086,-33519.0,0.00047527,30]
[313293501,1707095480097,-193.0,0.0004753,65]
[313293502,1707095480107,-500.0,0.00047557,6]
[313293503,1707095480116,-2104.36,0.00047572,15]
[313293504,1707095480125,-5088.73176463,0.000476,2]
[313293505,1707095480134,-1918.0,0.0004761,2]
[313293506,1707095480143,-500.0,0.00047631,13]
[313293507,1707095480152,-500.0,0.00047631,13]
[313293508,1707095480161,-500.0,0.00047631,13]
[313293509,1707095480170,-500.0,0.00047631,13]
[313293510,1707095480179,-500.0,0.00047631,13]
[313293511,1707095480189,-15000.0,0.0004765,120]
[313293512,1707095480199,-5000.0,0.00047671,60]
[313293513,1707095480208,-1000.0,0.00047671,60]
[313293514,1707095480217,-200.0,0.000477,27]
[313293515,1707095480227,-1000.0,0.000477,2]
[313293516,1707095480236,-604.0,0.00047749,7]
[313293517,1707095480245,-1003.0,0.0004777,4]
[313293518,1707095480255,-400.0,0.0004777,3]
[313293519,1707095480265,-208.03,0.000478,40]
[313293520,1707095480274,-150.0,0.000478,19]
[313293521,1707095480284,-153.95,0.000478,5]
[313293522,1707095480294,-153.95,0.000478,5]
[313293523,1707095480303,-153.95,0.000478,5]
[313293524,1707095480313,-153.95,0.000478,5]
[313293525,1707095480323,-153.95,0.000478,5]
[313293526,1707095480333,-153.95,0.000478,5]
[313293527,1707095480342,-15000.0,0.00047813,120]
[313293528,1707095480351,-3999.999999,0.00047898,31]
[313293529,1707095480361,-500.0,0.000479,6]
[313293530,1707095480371,-1000.0,0.000479,2]
[313293531,1707095480380,-666.0,0.00047945,2]
[313293532,1707095480391,-5000.0,0.00047945,65]
[313293533,1707095480400,-1000.0,0.00047945,7]
[313293534,1707095480409,-1000.0,0.00047945,7]
[313293535,1707095480419,-1000.0,0.00047945,7]
[313293536,1707095480428,-1000.0,0.00047945,7]
[313293537,1707095480437,-1000.0,0.00047945,7]
[313293538,1707095480446,-1000.0,0.00047945,7]
[313293539,1707095480457,-646.95481533,0.00047945,7]
[313293540,1707095480466,-1000.0,0.00047945,65]
[313293541,1707095480477,-500.0,0.00047945,2]
[313293542,1707095480488,-500.0,0.00047945,2]
[313293543,1707095480498,-500.0,0.00047945,2]
[313293544,1707095480509,-500.0,0.00047945,2]
[313293545,1707095480519,-196.81943821,0.00047945,2]
[313293546,1707095480528,-530.63532283,0.00047945,30]
[313293547,1707095480538,-500.0,0.00047945,21]
[313293548,1707095480548,-500.0,0.00047945,30]
[313293549,1707095480559,-500.0,0.00047957,5]
[313293550,1707095480569,-15000.0,0.00047975,120]
[313293551,1707095480579,-1300.0,0.0004798,30]
[313293552,1707095480589,-200.0,0.00047987,22]
[313293553,1707095480599,-200.0,0.00047987,17]
[313293554,1707095480608,-5250.0,0.0004799,24]
[313293555,1707095480618,-5250.0,0.0004799,25]
[313293556,1707095480627,-5250.0,0.0004799,28]
[313293557,1707095480636,-5250.0,0.0004799,30]
[313293558,1707095480646,-100000.0,0.00048,38]
[313293559,1707095480655,-15219.84696621,0.00048,14]
[313293560,1707095480664,-8183.55928064,0.00048,14]
[313293561,1707095480673,-800.0,0.00048,4]
[313293562,1707095480683,-503.31991566,0.00048,6]
[313293563,1707095480692,-416.30517938,0.00048,30]
[313293564,1707095480701,-500.0,0.00048,6]
[313293565,1707095480711,-451.0,0.00048,2]
[313293566,1707095480720,-2540.03796337,0.00048,30]
[313293567,1707095480729,-3000.0,0.00048,90]
[313293568,1707095480738,-500.0,0.00048,6]
[313293569,1707095480747,-11000.0,0.00048,4]
[313293570,1707095480757,-467.0,0.00048,30]
[313293571,1707095480766,-300.0,0.00048,48]
[313293572,1707095480775,-755.728,0.00048,30]
[313293573,1707095480784,-300.0,0.00048,30]
[313293574,1707095480793,-300.0,0.00048,30]
[313293575,1707095480803,-3201.300852,0.00048,48]
[313293576,1707095480813,-304.921969,0.00048,25]
[313293577,1707095480822,-33519.0,0.00048003,30]
[313293578,1707095480831,-300.0,0.000481,25]
[313293579,1707095480841,-15000.0,0.00048138,120]
[313293580,1707095480850,-500.0,0.00048141,7]
[313293581,1707095480859,-166.0,0.000482,30]
[313293582,1707095480869,-500.0,0.00048219,7]
[313293583,1707095480878,-1031.1,0.00048219,7]
[313293584,1707095480887,-500.0,0.00048219,31]
[313293585,1707095480896,-553.67,0.00048219,31]
[313293586,1707095480906,-1044.03,0.00048219,31]
[313293587,1707095480915,-500.0,0.00048219,2]
[313293588,1707095480924,-803.85,0.00048219,30]
[313293589,1707095480933,-608.81,0.00048219,31]
[313293590,1707095480942,-1699.92,0.00048219,31]
[313293591,1707095480952,-911.94,0.00048219,7]
[313293592,1707095480961,-500.0,0.00048219,31]
[313293593,1707095480971,-1072.12,0.00048219,31]
[313293594,1707095480980,-500.0,0.00048219,31]
[313293595,1707095480990,-5000.0,0.00048219,70]
[313293596,1707095480999,-2546.85,0.00048219,31]
[313293597,1707095481008,-947.41,0.00048219,20]
[313293598,1707095481017,-280.38103169,0.00048219,31]
[313293599,1707095481026,-645.15,0.00048219,10]